Workbook

Sheet 农机员
A1: 唐山高新区2025年7-12月年满60周岁农机员生活补助公示表
A2: 单位：高新区农村工作服务中心 | E2: 监督举报电话：0315-5513128 | I2: 公示日期：2025年12月2日-12月8日
A3: 序号 | B3: 姓名 | C3: 原工作单位 | D3: 性别 | E3: 户口所在地（镇办、村） | F3: 公益服务认定时间 | H3: 公益服务认定年限 | I3: 月补助金额（元） | J3: 补贴月数（个） | K3: 补助总金额（元） | L3: 补助时间段（月） | M3: 备注
F4: 服务起年份 | G4: 服务止年份
A5: 1 | B5: 裴玉阁 | C5: 唐山市丰润县三女河公社农机站 | D5: 男 | E5: 丰润区石各庄镇三女河村 | F5: 1981/03 | G5: 1985/12 | H5: 5 | I5: 100 | J5: 6 | K5: 600 | L5: 2025.7.1
A6: 2 | B6: 罗仕玉 | C6: 唐山市丰润县老庄子镇毛家坨公社农机站 | D6: 男 | E6: 丰润区老庄子镇毛三村 | F6: 1976/10 | G6: 1985/12 | H6: 10 | I6: 200 | J6: 6 | K6: 1200 | L6: 2025.7.1
A7: 3 | B7: 姚玉山 | C7: 唐山市丰润县老庄子镇毛家坨公社农机站 | D7: 男 | E7: 丰润区老庄子镇白树庄 | F7: 1975/11 | G7: 1985/12 | H7: 11 | I7: 220 | J7: 6 | K7: 1320 | L7: 2025.7.1
A8: 4 | B8: 张占国 | C8: 唐山市丰润县老庄子镇毛家坨公社农机站 | D8: 男 | E8: 丰润区老庄子镇毛四村 | F8: 1977/03 | G8: 1983/06 | H8: 7 | I8: 140 | J8: 6 | K8: 840 | L8: 2025.7.1
A9: 5 | B9: 张贵林 | C9: 唐山市丰润县老庄子镇毛家坨公社农机站 | D9: 男 | E9: 丰润区老庄子镇毛三村 | F9: 1977/08 | G9: 1985/12 | H9: 9 | I9: 180 | J9: 6 | K9: 1080 | L9: 2025.7.1
A10: 6 | B10: 陈庆台 | C10: 唐山市丰润县老庄子镇毛家坨公社农机站 | D10: 男 | E10: 丰润区老庄子镇崔家屯村 | F10: 1978/02 | G10: 1985/12 | H10: 8 | I10: 160 | J10: 6 | K10: 960 | L10: 2025.7.1
A11: 7 | B11: 杨贵全 | C11: 唐山市丰润县老庄子镇毛家坨公社农机站 | D11: 男 | E11: 丰润区老庄子镇毛四村 | F11: 1976/10 | G11: 1985/12 | H11: 10 | I11: 200 | J11: 6 | K11: 1200 | L11: 2025.7.1
A12: 8 | B12: 宋国会 | C12: 唐山市丰润县老庄子镇毛家坨公社农机站 | D12: 男 | E12: 丰润区老庄子镇范家坨村 | F12: 1976/10 | G12: 1985/12 | H12: 10 | I12: 200 | J12: 6 | K12: 1200 | L12: 2025.7.1
A13: 9 | B13: 兰友芳 | C13: 唐山市丰润县老庄子镇毛家坨公社农机站 | D13: 男 | E13: 丰润区老庄子镇毛二村 | F13: 1975/05 | G13: 1985/12 | H13: 11 | I13: 220 | J13: 6 | K13: 1320 | L13: 2025.7.1
A14: 10 | B14: 苗印才 | C14: 唐山市丰润县三女河公社农机管理站 | D14: 男 | E14: 丰润区石各庄镇高庄子村 | F14: 1974/11 | G14: 1985/12 | H14: 12 | I14: 240 | J14: 6 | K14: 1440 | L14: 2025.7.1
A15: 11 | B15: 张贵申 | C15: 唐山市丰润县老庄子镇毛家坨公社农机站 | D15: 男 | E15: 丰润区老庄子镇白树庄 | F15: 1976/08 | G15: 1985/12 | H15: 10 | I15: 200 | J15: 6 | K15: 1200 | L15: 2025.7.1
A16: 12 | B16: 武志成 | C16: 唐山市丰润县老庄子镇毛家坨公社农机站 | D16: 男 | E16: 丰润区老庄子镇崔家屯村 | F16: 1975/11 | G16: 1985/12 | H16: 11 | I16: 220 | J16: 6 | K16: 1320 | L16: 2025.7.1
A17: 13 | B17: 张秋才 | C17: 唐山市丰润县老庄子镇毛家坨公社农机站 | D17: 男 | E17: 丰润区老庄子镇姚家庄村 | F17: 1974/09 | G17: 1985/12 | H17: 12 | I17: 240 | J17: 6 | K17: 1440 | L17: 2025.7.1
A18: 14 | B18: 徐文生 | C18: 唐山市丰润县老庄子镇毛家坨公社农机站 | D18: 男 | E18: 丰润区老庄子镇毛三村 | F18: 1975/08 | G18: 1985/12 | H18: 11 | I18: 220 | J18: 6 | K18: 1320 | L18: 2025.7.1
A19: 15 | B19: 祖连国 | C19: 唐山市丰润县老庄子镇毛家坨公社农机站 | D19: 男 | E19: 丰润区老庄子镇范家坨村 | F19: 1975/09 | G19: 1985/12 | H19: 11 | I19: 220 | J19: 6 | K19: 1320 | L19: 2025.7.1
A20: 16 | B20: 徐宝玉 | C20: 唐山市丰润县老庄子镇毛家坨公社农机站 | D20: 男 | E20: 丰润区老庄子镇安家庄村 | F20: 1976/10 | G20: 1985/12 | H20: 10 | I20: 200 | J20: 6 | K20: 1200 | L20: 2025.7.1
A21: 17 | B21: 庄宝成 | C21: 唐山市丰润县老庄子镇毛家坨公社农机站 | D21: 男 | E21: 丰润区老庄子镇崔家屯村 | F21: 1976/07 | G21: 1985/12 | H21: 10 | I21: 200 | J21: 6 | K21: 1200 | L21: 2025.7.1
A22: 18 | B22: 徐长 | C22: 唐山市丰润县老庄子镇毛家坨公社农机站 | D22: 男 | E22: 丰润区老庄子镇范家坨村 | F22: 1976/10 | G22: 1985/12 | H22: 8 | I22: 160 | J22: 6 | K22: 960 | L22: 2025.7.1
A23: 19 | B23: 郭建忠 | C23: 唐山市丰润区老庄子镇毛家坨公社农机站 | D23: 男 | E23: 丰润区老庄子镇崔家屯村 | F23: 1978/03 | G23: 1983/08 | H23: 6 | I23: 120 | J23: 6 | K23: 720 | L23: 2025.7.1
A24: 20 | B24: 张德清 | C24: 唐山市丰润县老庄子镇毛家坨公社农机站 | D24: 男 | E24: 丰润区老庄子镇毛一村 | F24: 1975/01 | G24: 1985/12 | H24: 11 | I24: 220 | J24: 6 | K24: 1320 | L24: 2025.7.1
A25: 21 | B25: 赵庆贵 | C25: 唐山市丰润县三女河公社农机站 | D25: 男 | E25: 丰润区石各庄镇方子里村 | F25: 1974/12 | G25: 1985/12 | H25: 12 | I25: 240 | J25: 6 | K25: 1440 | L25: 2025.7.1
A26: 22 | B26: 邱玉合 | C26: 唐山市丰润县三女河公社农机站 | D26: 男 | E26: 丰润区石各庄镇方子里村 | F26: 1975/09 | G26: 1985/12 | H26: 11 | I26: 220 | J26: 6 | K26: 1320 | L26: 2025.7.1
A27: 23 | B27: 邱天明 | C27: 唐山市丰润县三女河公社农机站 | D27: 男 | E27: 丰润区石各庄镇韩家街村 | F27: 1976/04 | G27: 1985/12 | H27: 10 | I27: 200 | J27: 6 | K27: 1200 | L27: 2025.7.1
A28: 24 | B28: 刘得义 | C28: 唐山市丰润县三女河公社农机站 | D28: 男 | E28: 丰润区石各庄镇韩家街村 | F28: 1975/03 | G28: 1985/12 | H28: 11 | I28: 220 | J28: 6 | K28: 1320 | L28: 2025.7.1
A29: 25 | B29: 刘宝山 | C29: 唐山市丰润县三女河公社农机站 | D29: 男 | E29: 丰润区石各庄镇邵家街村 | F29: 1975/09 | G29: 1985/12 | H29: 11 | I29: 220 | J29: 6 | K29: 1320 | L29: 2025.7.1
A30: 26 | B30: 王海成 | C30: 河北省秦皇岛市青龙满族自治县娄子石公社农机站 | D30: 男 | E30: 河北省唐山市丰润区石各庄镇三女河村新楼区南一排1号 | F30: 1971/03 | G30: 1991/06 | H30: 20 | I30: 400 | J30: 6 | K30: 2400 | L30: 2025.7.1
A31: 27 | B31: 周铁厂 | C31: 唐山市丰润县三女河公社农机站 | D31: 男 | E31: 丰润区石各庄镇三女河村 | F31: 1978/03 | G31: 1985/12 | H31: 8 | I31: 160 | J31: 6 | K31: 960 | L31: 2025.7.1
A32: 28 | B32: 王振永 | C32: 唐山市丰润县三女河公社农机站 | D32: 男 | E32: 丰润区石各庄镇三女河村 | F32: 1979/04 | G32: 1985/12 | H32: 7 | I32: 140 | J32: 6 | K32: 840 | L32: 2025.7.1
A33: 29 | B33: 张俊如 | C33: 唐山市丰润县三女河公社农机站 | D33: 男 | E33: 丰润区石各庄镇三女河村 | F33: 1978/03 | G33: 1985/12 | H33: 8 | I33: 160 | J33: 6 | K33: 960 | L33: 2025.7.1
A34: 30 | B34: 张国永 | C34: 唐山市丰润县三女河公社农机站 | D34: 男 | E34: 丰润区石各庄镇三女河村 | F34: 1975/03 | G34: 1985/12 | H34: 11 | I34: 220 | J34: 6 | K34: 1320 | L34: 2025.7.1
A35: 31 | B35: 韩俊福 | C35: 唐山市丰润县三女河公社农机站 | D35: 男 | E35: 丰润区石各庄镇高庄子村 | F35: 1975/03 | G35: 1985/12 | H35: 11 | I35: 220 | J35: 6 | K35: 1320 | L35: 2025.7.1
A36: 32 | B36: 韩青 | C36: 唐山市丰润县三女河公社农机站 | D36: 男 | E36: 丰润区石各庄镇高庄子村 | F36: 1974/12 | G36: 1985/12 | H36: 12 | I36: 240 | J36: 6 | K36: 1440 | L36: 2025.7.1
A37: 33 | B37: 党恩召 | C37: 唐山市丰润县三女河公社农机站 | D37: 男 | E37: 丰润区石各庄镇三女河村 | F37: 1975/07 | G37: 1985/12 | H37: 11 | I37: 220 | J37: 6 | K37: 1320 | L37: 2025.7.1
A38: 34 | B38: 张增 | C38: 唐山市丰润县三女河公社农机站 | D38: 男 | E38: 丰润区石各庄镇黄花港村 | F38: 1975/03 | G38: 1985/12 | H38: 11 | I38: 220 | J38: 6 | K38: 1320 | L38: 2025.7.1
A39: 35 | B39: 马玉常 | C39: 唐山市丰润县三女河公社农机站 | D39: 男 | E39: 丰润区石各庄镇黄花港村 | F39: 1976/04 | G39: 1985/12 | H39: 10 | I39: 200 | J39: 6 | K39: 1200 | L39: 2025.7.1
A40: 36 | B40: 刘少保 | C40: 唐山市丰润县三女河公社农机站 | D40: 男 | E40: 丰润区石各庄镇黄花港村 | F40: 1974/12 | G40: 1985/12 | H40: 12 | I40: 240 | J40: 6 | K40: 1440 | L40: 2025.7.1
A41: 37 | B41: 白井国 | C41: 唐山市丰润县三女河公社农机站 | D41: 男 | E41: 丰润区石各庄镇黄花港村 | F41: 1978/03 | G41: 1985/12 | H41: 8 | I41: 160 | J41: 6 | K41: 960 | L41: 2025.7.1
A42: 38 | B42: 刘金仲 | C42: 唐山市丰润县老庄子镇毛家坨公社农机站 | D42: 男 | E42: 丰润区老庄子镇姚家庄村 | F42: 1978/08 | G42: 1985/12 | H42: 8 | I42: 160 | J42: 6 | K42: 960 | L42: 2025.7.1
A43: 39 | B43: 王淑彩 | C43: 付家屯农机站 | D43: 女 | E43: 街道办付家屯村 | F43: 1973.4 | G43: 1979.12 | H43: 7 | I43: =H43*20 -> 140 | J43: 6 | K43: =I43*J43 -> 840 | L43: 2025.7-12
A44: 40 | B44: 周连兴 | C44: 付家屯农机站 | D44: 男 | E44: 街道办新城子村 | F44: 1977.3 | G44: 1981.6 | H44: 5 | I44: 100 | J44: 6 | K44: 600 | L44: 2025.7-12
A45: 41 | B45: 曹凤仲 | C45: 付家屯农机站 | D45: 男 | E45: 街道办新城子村 | F45: 1969.9 | G45: 1985.5 | H45: 16 | I45: 320 | J45: 6 | K45: 1920 | L45: 2025.7-12
A46: 42 | B46: 张兆华 | C46: 付家屯农机站 | D46: 男 | E46: 街道办新城子村 | F46: 1974.3 | G46: 1985.5 | H46: 12 | I46: 240 | J46: 6 | K46: 1440 | L46: 2025.7-12
A47: 43 | B47: 姜淑芹 | C47: 付家屯农机站 | D47: 女 | E47: 街道办新城子村 | F47: 1973.4 | G47: 1985.5 | H47: 13 | I47: 260 | J47: 6 | K47: 1560 | L47: 2025.7-12
A48: 44 | B48: 刘铁平 | C48: 付家屯农机站 | D48: 男 | E48: 街道办新城子村 | F48: 1978.4 | G48: 1985.12 | H48: 8 | I48: 160 | J48: 6 | K48: 960 | L48: 2025.7-12
A49: 45 | B49: 孙瑞忠 | C49: 任各庄农机站 | D49: 男 | E49: 街道办孙家庄村 | F49: 1979.8 | G49: 1985.12 | H49: 7 | I49: =H49*20 -> 140 | J49: 6 | K49: 840 | L49: 2025.7-12
A50: 46 | B50: 朱学志 | C50: 任各庄农机站 | D50: 男 | E50: 街道办孙家庄村 | F50: 1970.12 | G50: 1985.12 | H50: 16 | I50: 320 | J50: 6 | K50: 1920 | L50: 2025.7-12
A51: 47 | B51: 孙艳青 | C51: 任各庄农机站 | D51: 男 | E51: 街道办孙家庄村 | F51: 1973.8 | G51: 1985.12 | H51: 13 | I51: 260 | J51: 6 | K51: 1560 | L51: 2025.7-12
A52: 48 | B52: 赵文亚 | C52: 付家屯农机站 | D52: 男 | E52: 街道办龙王庙村 | F52: 1980.1 | G52: 1985.5 | H52: 6 | I52: 120 | J52: 6 | K52: 720 | L52: 2025.7-12
A53: 49 | B53: 赵文来 | C53: 付家屯农机站 | D53: 男 | E53: 街道办龙王庙村 | F53: 1980.6 | G53: 1985.5 | H53: 5 | I53: =H53*20 -> 100 | J53: 6 | K53: 600 | L53: 2025.7-12
A54: 50 | B54: 庞文泽 | C54: 付家屯农机站 | D54: 男 | E54: 街道办龙王庙村 | F54: 1975.8 | G54: 1985.5 | H54: 10 | I54: 200 | J54: 6 | K54: 1200 | L54: 2025.7-12
A55: 51 | B55: 刘焕新 | C55: 付家屯农机站 | D55: 男 | E55: 街道办瓦官庄村 | F55: 1971.11 | G55: 1985.5 | H55: 14 | I55: 280 | J55: 6 | K55: 1680 | L55: 2025.7-12
A56: 52 | B56: 李绍平 | C56: 付家屯农机站 | D56: 男 | E56: 街道办瓦官庄村 | F56: 1977.3 | G56: 1985.5 | H56: 9 | I56: 180 | J56: 6 | K56: 1080 | L56: 2025.7-12
A57: 53 | B57: 李洪良 | C57: 付家屯农机站 | D57: 男 | E57: 街道办付家屯村 | F57: 1977.4 | G57: 1985.5 | H57: 9 | I57: 180 | J57: 6 | K57: 1080 | L57: 2025.7-12
A58: 54 | B58: 庞文田 | C58: 付家屯农机站 | D58: 男 | E58: 街道办富庄村 | F58: 1974.2 | G58: 1985.5 | H58: 12 | I58: =H58*20 -> 240 | J58: 6 | K58: 1440 | L58: 2025.7-12
A59: 55 | B59: 许文峰 | C59: 付家屯农机站 | D59: 男 | E59: 街道办许鄄子村 | F59: 1982.10 | G59: 1985.12 | H59: 4 | I59: 80 | J59: 6 | K59: 480 | L59: 2025.7-12
A60: 56 | B60: 岳继存 | C60: 付家屯农机站 | D60: 男 | E60: 街道办王鄄子村 | F60: 1971.1 | G60: 1985.5 | H60: 15 | I60: 300 | J60: 6 | K60: 1800 | L60: 2025.7-12
A61: 57 | B61: 王亚东 | C61: 付家屯农机站 | D61: 男 | E61: 街道办王鄄子村 | F61: 1970.8 | G61: 1985.5 | H61: 15 | I61: 300 | J61: 6 | K61: 1800 | L61: 2025.7-12
A62: 58 | B62: 刘焕臣 | C62: 刘家营农机站 | D62: 男 | E62: 街道办富庄村 | F62: 1976.10 | G62: 1985.12 | H62: 10 | I62: 200 | J62: 6 | K62: 1200 | L62: 2025.7-12
A63: 59 | B63: 梁玉霞 | C63: 新庄子农机站 | D63: 女 | E63: 街道办许鄄子村 | F63: 1974.5 | G63: 1982.12 | H63: 9 | I63: 180 | J63: 6 | K63: 1080 | L63: 2025.7-12
A64: 60 | B64: 张子艳 | C64: 老庄子公社农机站 | D64: 男 | E64: 老庄子镇沙雾庄村 | F64: 1973-04-01 | G64: 1983-05-01 | H64: 11 | I64: 220 | J64: 6 | K64: 1320 | L64: 2025.7-12
A65: 61 | B65: 杨玉良 | C65: 老庄子公社农机站 | D65: 男 | E65: 老庄子镇沙雾庄村 | F65: 1980-10-01 | G65: 1985-12-01 | H65: 6 | I65: 120 | J65: 6 | K65: 720 | L65: 2025.7-12
A66: 62 | B66: 王胜海 | C66: 老庄子公社农机站 | D66: 男 | E66: 老庄子镇沙雾庄村 | F66: 1970-03-01 | G66: 1985-12-01 | H66: 16 | I66: 320 | J66: 6 | K66: 1920 | L66: 2025.7-12
A67: 63 | B67: 尹贺禄 | C67: 老庄子公社农机站 | D67: 男 | E67: 老庄子镇沙雾庄村 | F67: 1981-01-01 | G67: 1985-12-01 | H67: 5 | I67: 100 | J67: 6 | K67: 600 | L67: 2025.7-12
A68: 64 | B68: 张全 | C68: 老庄子公社农机站 | D68: 男 | E68: 老庄子镇沙雾庄村 | F68: 1975-09-01 | G68: 1985-12-01 | H68: 11 | I68: 220 | J68: 6 | K68: 1320 | L68: 2025.7-12
A69: 65 | B69: 贾振江 | C69: 老庄子公社农机站 | D69: 男 | E69: 老庄子镇陈家庄村 | F69: 1970-09-01 | G69: 1985-06-01 | H69: 15 | I69: 300 | J69: 6 | K69: 1800 | L69: 2025.7-12
A70: 66 | B70: 王振东 | C70: 老庄子公社农机站 | D70: 男 | E70: 老庄子镇陈家庄村 | F70: 1978-12-01 | G70: 1985-12-01 | H70: 8 | I70: 160 | J70: 6 | K70: 960 | L70: 2025.7-12
A71: 67 | B71: 荣振齐 | C71: 老庄子公社农机站 | D71: 男 | E71: 老庄子镇陈家庄村 | F71: 1981-05-01 | G71: 1985-12-01 | H71: 5 | I71: 100 | J71: 6 | K71: 600 | L71: 2025.7-12
A72: 68 | B72: 王国利 | C72: 老庄子公社农机站 | D72: 男 | E72: 老庄子镇陈家庄村 | F72: 1976-04-01 | G72: 1985-12-01 | H72: 10 | I72: 200 | J72: 6 | K72: 1200 | L72: 2025.7-12
A73: 69 | B73: 张振国 | C73: 老庄子公社农机站 | D73: 男 | E73: 老庄子镇陈家庄村 | F73: 1979-05-01 | G73: 1985-05-01 | H73: 7 | I73: 140 | J73: 6 | K73: 840 | L73: 2025.7-12
A74: 70 | B74: 董清朝 | C74: 老庄子公社农机站 | D74: 男 | E74: 老庄子镇魏庄子村 | F74: 1976-03-01 | G74: 1985-12-01 | H74: 10 | I74: 200 | J74: 6 | K74: 1200 | L74: 2025.7-12
A75: 71 | B75: 王春开 | C75: 老庄子公社农机站 | D75: 男 | E75: 老庄子镇魏庄子村 | F75: 1971-06-01 | G75: 1984-08-01 | H75: 14 | I75: 280 | J75: 6 | K75: 1680 | L75: 2025.7-12
A76: 72 | B76: 狄占海 | C76: 老庄子公社农机站 | D76: 男 | E76: 老庄子镇魏庄子村 | F76: 1976-08-01 | G76: 1985-12-01 | H76: 10 | I76: 200 | J76: 6 | K76: 1200 | L76: 2025.7-12
A77: 73 | B77: 王建兴 | C77: 老庄子公社农机站 | D77: 男 | E77: 老庄子镇魏庄子村 | F77: 1980-03-01 | G77: 1985-12-01 | H77: 6 | I77: 120 | J77: 6 | K77: 720 | L77: 2025.7-12
A78: 74 | B78: 韩连平 | C78: 老庄子公社农机站 | D78: 男 | E78: 老庄子镇魏庄子村 | F78: 1975-03-01 | G78: 1985-12-01 | H78: 11 | I78: 220 | J78: 6 | K78: 1320 | L78: 2025.7-12
A79: 75 | B79: 李广文 | C79: 老庄子公社农机站 | D79: 男 | E79: 老庄子镇新村 | F79: 1976-04-01 | G79: 1985-12-01 | H79: 10 | I79: 200 | J79: 6 | K79: 1200 | L79: 2025.7-12
A80: 76 | B80: 侯保申 | C80: 老庄子公社农机站 | D80: 男 | E80: 老庄子镇新村 | F80: 1977-03-01 | G80: 1985-12-01 | H80: 9 | I80: 180 | J80: 6 | K80: 1080 | L80: 2025.7-12
A81: 77 | B81: 吴振洲 | C81: 毛家坨公社农机站 | D81: 男 | E81: 老庄子镇前冯各庄村 | F81: 1978-03-01 | G81: 1985-12-01 | H81: 8 | I81: 160 | J81: 6 | K81: 960 | L81: 2025.7-12
A82: 78 | B82: 王贺 | C82: 毛家坨公社农机站 | D82: 男 | E82: 老庄子镇前冯各庄村 | F82: 1977-05-01 | G82: 1985-12-01 | H82: 9 | I82: 180 | J82: 6 | K82: 1080 | L82: 2025.7-12
A83: 79 | B83: 姜德存 | C83: 毛家坨公社农机站 | D83: 男 | E83: 老庄子镇后冯各庄村 | F83: 1978-08-01 | G83: 1985-12-01 | H83: 8 | I83: =H83*20 -> 160 | J83: 6 | K83: 960 | L83: 2025.7-12
A84: 80 | B84: 周静春 | C84: 毛家坨公社农机站 | D84: 男 | E84: 老庄子镇后冯各庄村 | F84: 1974-04-01 | G84: 1985-12-01 | H84: 12 | I84: 240 | J84: 6 | K84: 1440 | L84: 2025.7-12
A85: 81 | B85: 董双喜 | C85: 毛家坨公社农机站 | D85: 男 | E85: 老庄子镇后冯各庄村 | F85: 1976-05-01 | G85: 1985-12-01 | H85: 10 | I85: 200 | J85: 6 | K85: 1200 | L85: 2025.7-12
A86: 82 | B86: 董福平 | C86: 毛家坨公社农机站 | D86: 男 | E86: 老庄子镇后冯各庄村 | F86: 1975-06-01 | G86: 1985-12-01 | H86: 11 | I86: 220 | J86: 6 | K86: 1320 | L86: 2025.7-12
A87: 83 | B87: 田久贵 | C87: 小城子公社农机站 | D87: 男 | E87: 老庄子镇党家庄村 | F87: 1973-04-01 | G87: 1985-12-01 | H87: 13 | I87: 260 | J87: 6 | K87: 1560 | L87: 2025.7-12
A88: 84 | B88: 党继锁 | C88: 小城子公社农机站 | D88: 男 | E88: 老庄子镇党家庄村 | F88: 1979-05-01 | G88: 1983-11-01 | H88: 5 | I88: 100 | J88: 6 | K88: 600 | L88: 2025.7-12
A89: 85 | B89: 柳福顺 | C89: 小城子公社农机站 | D89: 男 | E89: 老庄子镇党家庄村 | F89: 1974-03-01 | G89: 1985-12-01 | H89: 12 | I89: 240 | J89: 6 | K89: 1440 | L89: 2025.7-12
A90: 86 | B90: 田长兴 | C90: 小城子公社农机站 | D90: 男 | E90: 老庄子镇党家庄村 | F90: 1976-03-01 | G90: 1984-11-01 | H90: 9 | I90: 180 | J90: 6 | K90: 1080 | L90: 2025.7-12
A91: 87 | B91: 赵生儒 | C91: 小城子公社农机站 | D91: 男 | E91: 老庄子镇夏屋村 | F91: 1973-05-01 | G91: 1982-11-01 | H91: 10 | I91: 200 | J91: 6 | K91: 1200 | L91: 2025.7-12
A92: 88 | B92: 赵生奎 | C92: 小城子公社农机站 | D92: 男 | E92: 老庄子镇夏屋村 | F92: 1973-12-01 | G92: 1985-12-01 | H92: 13 | I92: 260 | J92: 6 | K92: 1560 | L92: 2025.7-12
A93: 89 | B93: 赵振双 | C93: 小城子公社农机站 | D93: 男 | E93: 老庄子镇夏屋村 | F93: 1974-02-01 | G93: 1985-12-01 | H93: 12 | I93: 240 | J93: 6 | K93: 1440 | L93: 2025.7-12
A94: 90 | B94: 赵振奎 | C94: 小城子公社农机站 | D94: 男 | E94: 老庄子镇夏屋村 | F94: 1975-02-01 | G94: 1982-12-01 | H94: 8 | I94: 160 | J94: 6 | K94: 960 | L94: 2025.7-12
A95: 91 | B95: 赵金科 | C95: 小城子公社农机站 | D95: 男 | E95: 老庄子镇瓦房庄村 | F95: 1974-02-01 | G95: 1985-12-01 | H95: 12 | I95: 240 | J95: 6 | K95: 1440 | L95: 2025.7-12
A96: 92 | B96: 刘汉青 | C96: 小城子公社农机站 | D96: 男 | E96: 老庄子镇瓦房庄村 | F96: 1977-02-01 | G96: 1985-12-01 | H96: 9 | I96: 180 | J96: 6 | K96: 1080 | L96: 2025.7-12
A97: 93 | B97: 陈合仁 | C97: 小城子公社农机站 | D97: 男 | E97: 老庄子镇瓦房庄村 | F97: 1976-04-01 | G97: 1984-11-01 | H97: 9 | I97: 180 | J97: 6 | K97: 1080 | L97: 2025.7-12
A98: 94 | B98: 崔万岩 | C98: 小城子公社农机站 | D98: 男 | E98: 老庄子镇瓦房庄村 | F98: 1974-10-01 | G98: 1984-09-01 | H98: 10 | I98: 200 | J98: 6 | K98: 1200 | L98: 2025.7-12
A99: 95 | B99: 陈计成 | C99: 小城子公社农机站 | D99: 男 | E99: 老庄子镇瓦房庄村 | F99: 1973-06-01 | G99: 1984-06-01 | H99: 12 | I99: 240 | J99: 6 | K99: 1440 | L99: 2025.7-12
A100: 96 | B100: 张久华 | C100: 小城子公社农机站 | D100: 男 | E100: 老庄子镇瓦房庄村 | F100: 1978-10-01 | G100: 1985-12-01 | H100: 8 | I100: 160 | J100: 6 | K100: 960 | L100: 2025.7-12
A101: 97 | B101: 何守柱 | C101: 小城子公社农机站 | D101: 男 | E101: 老庄子镇李官屯村 | F101: 1974-03-01 | G101: 1985-12-01 | H101: 12 | I101: 240 | J101: 6 | K101: 1440 | L101: 2025.7-12
A102: 98 | B102: 李应山 | C102: 小城子公社农机站 | D102: 男 | E102: 老庄子镇李官屯村 | F102: 1974-02-01 | G102: 1984-12-01 | H102: 11 | I102: 220 | J102: 6 | K102: 1320 | L102: 2025.7-12
A103: 99 | B103: 李应才 | C103: 小城子公社农机站 | D103: 男 | E103: 老庄子镇李官屯村 | F103: 1977-11-01 | G103: 1984-11-01 | H103: 8 | I103: 160 | J103: 6 | K103: 960 | L103: 2025.7-12
A104: 100 | B104: 李百云 | C104: 小城子公社农机站 | D104: 男 | E104: 老庄子镇李官屯村 | F104: 1978-03-01 | G104: 1985-12-01 | H104: 8 | I104: 160 | J104: 6 | K104: 960 | L104: 2025.7-12
A105: 101 | B105: 李贺彩 | C105: 小城子公社农机站 | D105: 男 | E105: 老庄子镇李官屯村 | F105: 1976-03-01 | G105: 1984-11-01 | H105: 9 | I105: 180 | J105: 6 | K105: 1080 | L105: 2025.7-12
A106: 102 | B106: 李昌润 | C106: 小城子公社农机站 | D106: 男 | E106: 老庄子镇李官屯村 | F106: 1976-06-01 | G106: 1985-12-01 | H106: 10 | I106: 200 | J106: 6 | K106: 1200 | L106: 2025.7-12
A107: 103 | B107: 李柏金 | C107: 小城子公社农机站 | D107: 男 | E107: 老庄子镇李官屯村 | F107: 1975-02-01 | G107: 1985-12-01 | H107: 11 | I107: 220 | J107: 6 | K107: =I107*J107 -> 1320 | L107: 2025.7-12
A108: 104 | B108: 张凤阁 | C108: 老庄子公社农机站 | D108: 男 | E108: 老庄子镇周凤庄村 | F108: 1976-09-01 | G108: 1985-12-01 | H108: 10 | I108: 200 | J108: 6 | K108: 1200 | L108: 2025.7-12
A109: 105 | B109: 常金全 | C109: 老庄子公社农机站 | D109: 男 | E109: 老庄子镇周凤庄村 | F109: 1973-09-01 | G109: 1985-12-01 | H109: 13 | I109: 260 | J109: 6 | K109: 1560 | L109: 2025.7-12
A110: 106 | B110: 刘景维 | C110: 老庄子公社农机站 | D110: 男 | E110: 老庄子镇七王庄村 | F110: 1976-01-01 | G110: 1985-12-01 | H110: 10 | I110: 200 | J110: 6 | K110: 1200 | L110: 2025.7-12
A111: 107 | B111: 高振良 | C111: 老庄子公社农机站 | D111: 男 | E111: 老庄子镇七王庄村 | F111: 1977-11-01 | G111: 1985-12-01 | H111: 9 | I111: 180 | J111: 6 | K111: 1080 | L111: 2025.7-12
A112: 108 | B112: 徐宝有 | C112: 老庄子公社农机站 | D112: 男 | E112: 老庄子镇七王庄村 | F112: 1979-03-01 | G112: 1985-12-01 | H112: 7 | I112: 140 | J112: 6 | K112: 840 | L112: 2025.7-12
A113: 109 | B113: 安文来 | C113: 老庄子公社农机站 | D113: 男 | E113: 老庄子镇南王庄村 | F113: 1971-03-01 | G113: 1985-12-01 | H113: 15 | I113: 300 | J113: 6 | K113: 1800 | L113: 2025.7-12
A114: 110 | B114: 殷晓岩 | C114: 老庄子公社农机站 | D114: 男 | E114: 老庄子镇南王庄村 | F114: 1981-02-01 | G114: 1985-12-01 | H114: 5 | I114: 100 | J114: 6 | K114: 600 | L114: 2025.7-12
A115: 111 | B115: 李福来 | C115: 老庄子公社农机站 | D115: 男 | E115: 老庄子镇南王庄村 | F115: 1976-09-01 | G115: 1985-10-01 | H115: 10 | I115: 200 | J115: 6 | K115: 1200 | L115: 2025.7-12
A116: 112 | B116: 安殿国 | C116: 老庄子公社农机站 | D116: 男 | E116: 老庄子镇南王庄村 | F116: 1978-03-01 | G116: 1985-12-01 | H116: 8 | I116: 160 | J116: 6 | K116: 960 | L116: 2025.7-12
A117: 113 | B117: 李春明 | C117: 老庄子公社农机站 | D117: 男 | E117: 老庄子镇老庄子村 | F117: 1971-03-01 | G117: 1985-12-01 | H117: 15 | I117: 300 | J117: 6 | K117: 1800 | L117: 2025.7-12
A118: 114 | B118: 常贺增 | C118: 老庄子公社农机站 | D118: 男 | E118: 老庄子镇老庄子村 | F118: 1980-08-01 | G118: 1985-12-01 | H118: 6 | I118: 120 | J118: 6 | K118: 720 | L118: 2025.7-12
A119: 115 | B119: 宋子良 | C119: 老庄子公社农机站 | D119: 男 | E119: 老庄子镇老庄子村 | F119: 1974-11-01 | G119: 1985-12-01 | H119: 12 | I119: 240 | J119: 6 | K119: 1440 | L119: 2025.7-12
A120: 116 | B120: 张玉强 | C120: 老庄子公社农机站 | D120: 男 | E120: 老庄子镇老庄子村 | F120: 1969-09-01 | G120: 1985-12-01 | H120: 17 | I120: 340 | J120: 6 | K120: 2040 | L120: 2025.7-12
A121: 117 | B121: 王守江 | C121: 小城子公社农机站 | D121: 男 | E121: 老庄子镇小城子村 | F121: 1974-03-01 | G121: 1985-12-01 | H121: 12 | I121: 240 | J121: 6 | K121: 1440 | L121: 2025.7-12
A122: 118 | B122: 韩宝良 | C122: 小城子公社农机站 | D122: 男 | E122: 老庄子镇大树韩庄子村 | F122: 1973-04-01 | G122: 1983-11-01 | H122: 11 | I122: 220 | J122: 6 | K122: 1320 | L122: 2025.7-12
A123: 119 | B123: 冯继文 | C123: 小城子公社农机站 | D123: 男 | E123: 老庄子镇大树韩庄子村 | F123: 1980-02-01 | G123: 1985-12-01 | H123: 6 | I123: 120 | J123: 6 | K123: 720 | L123: 2025.7-12
A124: 120 | B124: 陈树全 | C124: 毛家坨农机站 | D124: 男 | E124: 老庄子镇杨信庄村 | F124: 1974-11-01 | G124: 1984-11-01 | H124: 11 | I124: 220 | J124: 6 | K124: 1320 | L124: 2025.7-12
A125: 121 | B125: 杜久余 | C125: 郑庄子乡农机站 | D125: 男 | E125: 河北省唐山市高新区刘家洼 | F125: 1979-12-01 | G125: 1985-12-01 | H125: 7 | I125: 140 | J125: 6 | K125: 840 | L125: 2025.7-12
A126: 122 | B126: 杜久会 | C126: 郑庄子乡农机站 | D126: 男 | E126: 河北省唐山市高新区刘家洼 | F126: 1979-12-01 | G126: 1985-12-01 | H126: 7 | I126: 140 | J126: 6 | K126: 840 | L126: 2025.7-12
A127: 123 | B127: 张富英 | C127: 郑庄子乡农机站 | D127: 女 | E127: 河北省唐山市高新区刘家洼 | F127: 1979-12-01 | G127: 1985-12-01 | H127: 7 | I127: 140 | J127: 6 | K127: 840 | L127: 2025.7-12
A128: 124 | B128: 刘丽玲 | C128: 郑庄子乡农机站 | D128: 女 | E128: 河北省唐山市高新区刘家洼 | F128: 1979-12-01 | G128: 1985-12-01 | H128: 7 | I128: 140 | J128: 6 | K128: 840 | L128: 2025.7-12
A129: 125 | B129: 张瑞芬 | C129: 丰润区姜家营农机站 | D129: 女 | E129: 河北省唐山市高新区刘家洼 | F129: 1974-04-01 | G129: 1985-12-01 | H129: 11 | I129: 220 | J129: 6 | K129: 1320 | L129: 2025.7-12
A130: 126 | B130: 刘瑞林 | C130: 郑庄子乡农机站 | D130: 男 | E130: 河北省唐山市高新区郑庄子 | F130: 1979-11-01 | G130: 1984-12-01 | H130: 5 | I130: 100 | J130: 6 | K130: 600 | L130: 2025.7-12
A131: 127 | B131: 刘淑芬 | C131: 郑庄子乡农机站 | D131: 女 | E131: 河北省唐山市高新区郑庄子 | F131: 1978-03-01 | G131: 1985-12-01 | H131: 8 | I131: 160 | J131: 6 | K131: 960 | L131: 2025.7-12
A132: 128 | B132: 刘立凤 | C132: 郑庄子乡农机站 | D132: 女 | E132: 河北省唐山市高新区郑庄子 | F132: 1978-03-01 | G132: 1985-12-01 | H132: 8 | I132: 160 | J132: 6 | K132: 960 | L132: 2025.7-12
A133: 129 | B133: 秦恩双 | C133: 郑庄子乡农机站 | D133: 男 | E133: 河北省唐山市高新区北白寺口 | F133: 1978-03-02 | G133: 1985-12-01 | H133: 8 | I133: 160 | J133: 6 | K133: 960 | L133: 2025.7-12
A134: 130 | B134: 刘福青 | C134: 郑庄子乡农机站 | D134: 男 | E134: 河北省唐山市高新区梁各庄 | F134: 1978-03-01 | G134: 1985-12-01 | H134: 8 | I134: 160 | J134: 6 | K134: 960 | L134: 2025.7-12
A135: 131 | B135: 杜全广 | C135: 郑庄子乡农机站 | D135: 男 | E135: 河北省唐山市高新区梁各庄 | F135: 1978-03-01 | G135: 1985-12-01 | H135: 8 | I135: 160 | J135: 6 | K135: 960 | L135: 2025.7-12
A136: 132 | B136: 杜广文 | C136: 郑庄子乡农机站 | D136: 男 | E136: 河北省唐山市高新区梁各庄 | F136: 1978-03-01 | G136: 1985-12-01 | H136: 8 | I136: 160 | J136: 6 | K136: 960 | L136: 2025.7-12
A137: 133 | B137: 窦素秋 | C137: 郑庄子乡农机站 | D137: 女 | E137: 河北省唐山市高新区梁各庄 | F137: 1978-03-01 | G137: 1985-12-01 | H137: 8 | I137: 160 | J137: 6 | K137: 960 | L137: 2025.7-12
A138: 134 | B138: 杨万金 | C138: 郑庄子乡农机站 | D138: 男 | E138: 河北省唐山市高新区前白寺口 | F138: 1978-03-01 | G138: 1985-12-01 | H138: 8 | I138: 160 | J138: 6 | K138: 960 | L138: 2025.7-12
A139: 135 | B139: 孙丙红 | C139: 新庄子农机站 | D139: 女 | E139: 河北省唐山市高新区三益庄 | F139: 1978-03-01 | G139: 1985-12-01 | H139: 10 | I139: 200 | J139: 6 | K139: 1200 | L139: 2025.7-12
A140: 136 | B140: 宋福刚 | C140: 任各庄农机站 | D140: 男 | E140: 河北省唐山市高新区宋各庄 | F140: 1976-08-01 | G140: 1985-12-01 | H140: 10 | I140: 200 | J140: 6 | K140: 1200 | L140: 2025.7-12
A141: 137 | B141: 肖振林 | C141: 任各庄农机站 | D141: 男 | E141: 河北省唐山市高新区宋各庄 | F141: 1981-08-01 | G141: 1985-12-01 | H141: 5 | I141: 100 | J141: 6 | K141: 600 | L141: 2025.7-12
A142: 138 | B142: 刘光忠 | C142: 任各庄农机站 | D142: 男 | E142: 河北省唐山市高新区宋各庄 | F142: 1972-09-01 | G142: 1984-12-01 | H142: 13 | I142: 260 | J142: 6 | K142: 1560 | L142: 2025.7-12
A143: 139 | B143: 宋永良 | C143: 任各庄农机站 | D143: 男 | E143: 河北省唐山市高新区宋各庄 | F143: 1976-08-01 | G143: 1985-12-01 | H143: 10 | I143: 200 | J143: 6 | K143: 1200 | L143: 2025.7-12
A144: 140 | B144: 刘茂庆 | C144: 任各庄农机站 | D144: 男 | E144: 河北省唐山市高新区宋各庄 | F144: 1980-08-01 | G144: 1985-12-01 | H144: 6 | I144: 120 | J144: 6 | K144: 720 | L144: 2025.7-12
A145: 141 | B145: 宋宝存 | C145: 任各庄农机站 | D145: 男 | E145: 河北省唐山市高新区宋各庄 | F145: 1980-09-01 | G145: 1985-12-01 | H145: 6 | I145: 120 | J145: 6 | K145: 720 | L145: 2025.7-12
A146: 142 | B146: 阚立春 | C146: 老庄子农机站 | D146: 男 | E146: 河北省唐山市高新区詹官屯 | F146: 1974-07-01 | G146: 1985-12-01 | H146: 12 | I146: 240 | J146: 6 | K146: 1440 | L146: 2025.7-12
A147: 143 | B147: 鲁教江 | C147: 老庄子农机站 | D147: 男 | E147: 河北省唐山市高新区詹官屯 | F147: 1969-10-01 | G147: 1985-12-01 | H147: 17 | I147: 340 | J147: 6 | K147: 2040 | L147: 2025.7-12
A148: 144 | B148: 陈连友 | C148: 老庄子农机站 | D148: 男 | E148: 河北省唐山市高新区詹官屯 | F148: 1977-05-01 | G148: 1985-12-01 | H148: 9 | I148: 180 | J148: 6 | K148: 1080 | L148: 2025.7-12
A149: 145 | B149: 王连江 | C149: 郑庄子乡农机站 | D149: 男 | E149: 河北省唐山市高新区中白寺口 | F149: 1978-03-02 | G149: 1985-12-01 | H149: 8 | I149: 160 | J149: 6 | K149: 960 | L149: 2025.7-12
A150: 合计 | K150: =SUM(K5:K149) -> 170880

Sheet 农技员
A1: 唐山高新区2025年7-12月年满60周岁农技员生活补助公示表
A2: 单位：高新区农村工作服务中心 | E2: 监督举报电话：0315-5513128 | I2: 公示日期：2025年12月2日-12月8日 | Y2: 农机去掉2人工作不满三年
A3: 序号 | B3: 姓名 | C3: 原工作单位 | D3: 性别 | E3: 户口所在地（镇办、村） | F3: 公益服务认定时间 | H3: 公益服务认定年限 | I3: 月补助金额（元） | J3: 补贴月数（个） | K3: 补助总金额（元） | L3: 补助时间段（月） | M3: 备注
F4: 服务起年份 | G4: 服务止年份
A5: 1 | B5: 张宝奇 | C5: 唐山市丰润县老庄子镇毛家坨公社农技站 | D5: 男 | E5: 丰润区老庄子镇姚家庄村 | F5: 1978/09 | G5: 1999/12 | H5: 20 | I5: =H5*20 -> 400 | J5: 6 | K5: =I5*J5 -> 2400 | L5: 2025.7-12
A6: 2 | B6: 张尔章 | C6: 原毛家坨公社、毛家坨管理区农技服务站 | D6: 男 | E6: 丰润区老庄子镇毛一村 | F6: 1978/09 | G6: 1998/09 | H6: 20 | I6: 400 | J6: 6 | K6: 2400 | L6: 2025.7-12
A7: 3 | B7: 张贵安 | C7: 唐山市丰润县老庄子镇毛家坨公社农技站 | D7: 男 | E7: 丰润区老庄子镇毛三村 | F7: 1972/02 | G7: 1992/03 | H7: 20 | I7: 400 | J7: 6 | K7: 2400 | L7: 2025.7-12
A8: 4 | B8: 韩建平 | C8: 唐山市丰润县三女河公社农技站 | D8: 女 | E8: 丰润区石各庄镇三女河村 | F8: 1980/10 | G8: 1989/12 | H8: 10 | I8: 200 | J8: 6 | K8: 1200 | L8: 2025.7-12
A9: 5 | B9: 王守春 | C9: 唐山市丰润县三女河公社农技站 | D9: 男 | E9: 丰润区石各庄镇邵家街村 | F9: 1971/01 | G9: 1986/06 | H9: 16 | I9: =H9*20 -> 320 | J9: 6 | K9: =I9*J9 -> 1920 | L9: 2025.7-12
A10: 6 | B10: 张润甲 | C10: 唐山市丰润县老庄子镇毛家坨公社 | D10: 男 | E10: 丰润区老庄子镇崔家屯村 | F10: 1975/05 | G10: 1982/06 | H10: 8 | I10: 160 | J10: 6 | K10: 960 | L10: 2025.7-12
A11: 7 | B11: 于景海 | C11: 唐山市丰润县老庄子镇毛家坨公社农技服务站 | D11: 男 | E11: 丰润区老庄子镇崔家屯村 | F11: 1985/03 | G11: 1998/04 | H11: 14 | I11: 280 | J11: 6 | K11: 1680 | L11: 2025.7-12
A12: 8 | B12: 刘春平 | C12: 唐山市丰润县老庄子镇毛家坨公社农业技术推广站 | D12: 男 | E12: 丰润区老庄子镇崔家屯村 | F12: 1978/12 | G12: 1998/10 | H12: 20 | I12: 400 | J12: 6 | K12: 2400 | L12: 2025.7-12
A13: 9 | B13: 王振生 | C13: 唐山市丰润县老庄子镇三女河乡农业技术服务站 | D13: 男 | E13: 丰润区石各庄镇三女河村 | F13: 1990/04 | G13: 1999/12 | H13: 10 | I13: 200 | J13: 4 | K13: 800 | L13: 2025.7-10 | M13: 2025年10月24日死亡，11月停发。
A14: 10 | B14: 刘立平 | C14: 唐山市丰润县三女河公社农技站 | D14: 女 | E14: 丰润区石各庄镇韩家街村 | F14: 1983/09 | G14: 1991/05 | H14: 8 | I14: 160 | J14: 4 | K14: 640 | L14: 2025.9-12 | M14: 2025年8月年满60周岁，9月份开始发放。
A15: 11 | B15: 赵永建 | C15: 付家屯公社 | D15: 男 | E15: 街道办龙王庙村 | F15: 1976.8 | G15: 1997.10 | H15: 20 | I15: =H15*20 -> 400 | J15: 6 | K15: =I15*J15 -> 2400 | L15: 2025.7-12
A16: 12 | B16: 李敬恩 | C16: 付家屯公社 | D16: 男 | E16: 街道办瓦官庄村 | F16: 1979.10 | G16: 1994.11 | H16: 16 | I16: 320 | J16: 6 | K16: 1920 | L16: 2025.7-12
A17: 13 | B17: 党希友 | C17: 老庄子镇农技站 | D17: 男 | E17: 老庄子镇党家庄村 | F17: 1976-05-01 | G17: 1999-12-01 | H17: 20 | I17: 400 | J17: 6 | K17: 2400 | L17: 2025.7-12
A18: 14 | B18: 赵长生 | C18: 老庄子镇农技站 | D18: 男 | E18: 老庄子镇后冯各庄村 | F18: 1983-04-01 | G18: 1988-12-01 | H18: 6 | I18: 120 | J18: 6 | K18: 720 | L18: 2025.7-12
A19: 合计 | K19: =SUM(K5:K18) -> 24240

Sheet 兽医
A1: 唐山高新区2025年7-12月年满60周岁基层兽医生活补助公示表
A2: 单位：高新区农村工作服务中心 | E2: 监督举报电话：0315-5513128 | I2: 公示日期：2025年12月2日-12月8日 | X2: 农机去掉2人工作不满三年
A3: 序号 | B3: 姓名 | C3: 原工作单位 | D3: 性别 | E3: 户口所在地（镇办、村） | F3: 公益服务认定时间 | H3: 公益服务认定年限 | I3: 月补助金额（元） | J3: 补贴月数（个） | K3: 补助总金额（元） | L3: 补助时间段（月） | M3: 备注
F4: 服务起年份 | G4: 服务止年份
A5: 1 | B5: 崔立华 | C5: 河北省唐山市丰润县三女河公社兽医站 | D5: 男 | E5: 丰润区石各庄镇邵家街村 | F5: 1976/09 | G5: 1982/12 | H5: 7 | I5: =H5*20 -> 140 | J5: 6 | K5: =I5*J5 -> 840 | L5: 2025.7-12
A6: 2 | B6: 李及勇 | C6: 河北省唐山市丰润县三女河公社兽医站 | D6: 男 | E6: 丰润区石各庄镇韩家街村 | F6: 1973/03 | G6: 1982/12 | H6: 10 | I6: 200 | J6: 6 | K6: 1200 | L6: 2025.7-12
A7: 3 | B7: 张杰 | C7: 河北省唐山市丰润县三女河公社兽医站 | D7: 男 | E7: 丰润区石各庄镇方子里村 | F7: 1973/11 | G7: 1982/12 | H7: 10 | I7: 200 | J7: 6 | K7: 1200 | L7: 2025.7-12
A8: 4 | B8: 刘保禄 | C8: 河北省唐山市丰润县三女河公社兽医站 | D8: 男 | E8: 丰润区石各庄镇黄花港村 | F8: 1971/02 | G8: 1982/12 | H8: 12 | I8: 240 | J8: 6 | K8: 1440 | L8: 2025.7-12
A9: 5 | B9: 姜连全 | C9: 付家屯兽医站 | D9: 男 | E9: 街道办新城子村 | F9: 1977.3 | G9: 1982.12 | H9: 6 | I9: 120 | J9: 6 | K9: 720 | L9: 2025.7-12
A10: 6 | B10: 庞振林 | C10: 付家屯兽医站 | D10: 男 | E10: 街道办龙王庙村 | F10: 1974.8 | G10: 1982.12 | H10: 9 | I10: =H10*20 -> 180 | J10: 6 | K10: 1080 | L10: 2025.7-12
A11: 7 | B11: 付文海 | C11: 付家屯兽医站 | D11: 男 | E11: 街道办付家屯村 | F11: 1974.12 | G11: 1982.12 | H11: 9 | I11: 180 | J11: 6 | K11: 1080 | L11: 2025.7-12
A12: 8 | B12: 董学恕 | C12: 老庄子兽医站毛家坨分站 | D12: 男 | E12: 老庄子镇后冯各庄村 | F12: 1972-02-01 | G12: 1982-08-01 | H12: 11 | I12: 220 | J12: 6 | K12: 1320 | L12: 2025.7-12
A13: 9 | B13: 赵贺成 | C13: 老庄子兽医站 （ 小城子） | D13: 男 | E13: 老庄子镇夏屋村 | F13: 1970-09-01 | G13: 1982-08-01 | H13: 13 | I13: 260 | J13: 6 | K13: 1560 | L13: 2025.7-12
A14: 10 | B14: 尹海 | C14: 原老庄子公社兽医站 | D14: 男 | E14: 老庄子镇沙雾庄村 | F14: 1975-01-01 | G14: 1982-10-01 | H14: 8 | I14: 160 | J14: 6 | K14: 960 | L14: 2025.7-12
A15: 11 | B15: 郭希纯 | C15: 老庄子兽医站毛家坨分站 | D15: 男 | E15: 老庄子镇七王庄村 | F15: 1972-02-01 | G15: 1982-10-01 | H15: 11 | I15: 220 | J15: 6 | K15: 1320 | L15: 2025.7-12
A16: 12 | B16: 杜瑞荣 | C16: 郑庄子乡兽医站 | D16: 女 | E16: 河北省唐山市高新区刘家洼 | F16: 1978-12-01 | G16: 1982-12-01 | H16: 5 | I16: 100 | J16: 6 | K16: 600 | L16: 2025.7-12
A17: 合计 | K17: =SUM(K5:K16) -> 13320

Sheet 汇总
A1: 高新区2025年7-12月年满60周岁“三员”生活补助公示汇总表
A2: 单位：高新区农村工作服务中心
A3: 单位 | B3: 农机员 | D3: 农技员 | F3: 基层兽医 | H3: 合计
B4: 人数 | C4: 补贴资金 | D4: 人数 | E4: 补贴资金 | F4: 人数 | G4: 补贴资金 | H4: 总人数 | I4: 总补贴资金
A5: 高新区 | B5: 145 | C5: 170880 | D5: 14 | E5: 24240 | F5: 12 | G5: 13320 | H5: =B5+D5+F5 -> 171 | I5: =C5+E5+G5 -> 208440
